[Event "Czech Open Rapid G1 2024"]
[Site "Pardubice"]
[Date "2024.07.18"]
[Round "7.34"]
[White "Levytskyi, Liubomyr"]
[Black "Brotanek, Tomas"]
[Result "0-1"]
[Annotator "NA RC"]
[ECO "B12"]
[WhiteElo "1717"]
[BlackElo "1674"]
[PlyCount "80"]
[EventDate "2024.07.16"]
[EventType "swiss"]
[EventCountry "CZE"]
[SourceTitle "playchess.com"]
[Source "ChessBase"]
[SourceQuality "1"]
[TimeControl "1200+10"]

1. e4 {[%emt 0:00:02]} c6 {[%emt 0:00:01]} 2. d4 {[%emt 0:00:01]} d5 {[%emt 0:00:01]} 3. f3 {[%emt 0:00:02]} dxe4 {[%emt 0:00:02]} 4. fxe4 {[%emt 0:00:01]} e5 {[%emt 0:00:01]} 5. Nf3 {[%emt 0:00:03]} exd4 {[%emt 0:00:08]} 6. Bc4 {[%emt 0:00:01]} f6 {[%emt 0:00:22]} 7. O-O {[%emt 0:00:28]} Bc5 {[%emt 0:00:03]} 8. Kh1 {[%emt 0:01:04]} Bg4 {[%emt 0:00:39]} 9. Nbd2 {[%emt 0:00:46]} Nd7 {[%emt 0:00:13]} 10. Nb3 {[%emt 0:00:09]} b5 {[%emt 0:01:07]} 11. Be2 {[%emt 0:00:36]} Bxf3 {[%emt 0:02:02]} 12. Bxf3 {[%emt 0:00:10]} Bb6 {[%emt 0:00:21]} 13. Nxd4 {[%emt 0:00:31]} Bxd4 {[%emt 0:01:38]} 14. Qxd4 {[%emt 0:00:03]} Ne5 {[%emt 0:00:04]} 15. Qc3 {[%emt 0:00:53]} Ne7 {[%emt 0:01:04]} 16. Bf4 {[%emt 0:00:09]} N7g6 {[%emt 0:00:26]} 17. Bh5 {[%emt 0:01:12]} Qc7 {[%emt 0:02:25]} 18. Qh3 {[%emt 0:01:42]} Qd7 {[%emt 0:01:24]} 19. Qg3 {[%emt 0:00:35]} O-O {[%emt 0:01:30]} 20. Rad1 {[%emt 0:00:37]} Qe6 {[%emt 0:00:14]} 21. b3 {[%emt 0:01:05]} Rad8 {[%emt 0:00:47]} 22. Be3 {[%emt 0:00:13]} Qe7 {[%emt 0:01:19]} 23. Qf2 {[%emt 0:00:22]} Rxd1 {[%emt 0:00:40]} 24. Rxd1 {[%emt 0:00:02]} Ra8 {[%emt 0:00:42]} 25. Bc5 {[%emt 0:00:16]} Qc7 {[%emt 0:01:06]} 26. Rd6 {[%emt 0:04:54]} a5 {[%emt 0:01:42]} 27. Qd2 {[%emt 0:01:18]} a4 {[%emt 0:01:48]} 28. h3 {[%emt 0:03:48]} axb3 {[%emt 0:00:04]} 29. axb3 {[%emt 0:00:10]} Ra1+ {[%emt 0:01:35]} 30. Bg1 {[%emt 0:00:02]} Qb6 {[%emt 0:00:34]} 31. Qd4 {[%emt 0:00:10]} Qxd4 {[%emt 0:00:13]} 32. Rxd4 {[%emt 0:00:01]} h6 {[%emt 0:00:25]} 33. Rd6 {[%emt 0:00:43]} Nf4 {[%emt 0:00:03]} 34. Rd1 {[%emt 0:00:35]} Ra2 {[%emt 0:00:12]} 35. Be8 {[%emt 0:00:18]} Rxc2 {[%emt 0:00:05]} 36. b4 {[%emt 0:02:35]} Nxg2 {[%emt 0:00:28]} 37. Bc5 {[%emt 0:00:01]} Nf4 {[%emt 0:00:14]} 38. Rd8 {[%emt 0:00:05]} Kh7 {[%emt 0:00:07]} 39. Rc8 {[%emt 0:00:33]} Nf3 {[%emt 0:00:02]} 40. Be3 {[%emt 0:00:11]} Rh2# {[%emt 0:00:02]} 0-1

[Event "Czech Open Rapid G1 2024"]
[Site "Pardubice"]
[Date "2024.07.18"]
[Round "7.35"]
[White "Park, Inchan"]
[Black "Jun, Rudolf"]
[Result "1-0"]
[Annotator "RC"]
[ECO "A15"]
[WhiteElo "1856"]
[BlackElo "2232"]
[PlyCount "149"]
[EventDate "2024.07.16"]
[EventType "swiss"]
[EventCountry "CZE"]
[SourceTitle "playchess.com"]
[Source "ChessBase"]
[SourceQuality "1"]
[TimeControl "1200+10"]

1. d4 {[%emt 0:00:02]} Nf6 {[%emt 0:00:01]} 2. Nf3 {[%emt 0:00:02]} b6 {[%emt 0:00:15]} 3. g3 {[%emt 0:00:05]} Bb7 {[%emt 0:00:01]} 4. Bg2 {[%emt 0:00:02]} g6 {[%emt 0:00:07]} 5. O-O {[%emt 0:00:03]} Bg7 {[%emt 0:00:02]} 6. b3 {[%emt 0:00:01]} O-O {[%emt 0:00:02]} 7. Bb2 {[%emt 0:00:02]} d6 {[%emt 0:00:04]} 8. c4 {[%emt 0:00:03]} Nbd7 {[%emt 0:00:19]} 9. Nbd2 {[%emt 0:00:23]} Re8 {[%emt 0:00:03]} 10. Re1 {[%emt 0:00:29]} h6 {[%emt 0:00:15]} 11. d5 {[%emt 0:01:15]} a5 {[%emt 0:00:21]} 12. Qc2 {[%emt 0:00:39]} Nc5 {[%emt 0:00:09]} 13. Nd4 {[%emt 0:01:19]} Rb8 {[%emt 0:00:51]} 14. f4 {[%emt 0:01:51]} Ng4 {[%emt 0:01:08]} 15. e4 {[%emt 0:00:09]} e5 {[%emt 0:00:26]} 16. dxe6 {[%emt 0:00:30]} fxe6 {[%emt 0:00:28]} 17. h3 {[%emt 0:02:16]} Nf6 {[%emt 0:00:02]} 18. e5 {[%emt 0:00:45]} dxe5 {[%emt 0:00:01]} 19. fxe5 {[%emt 0:00:49]} Nfd7 {[%emt 0:00:41]} 20. Qxg6 {[%emt 0:00:27]} Bxg2 {[%emt 0:00:03]} 21. Kxg2 {[%emt 0:00:02]} Qg5 {[%emt 0:00:05]} 22. Qxg5 {[%emt 0:00:29]} hxg5 {[%emt 0:00:02]} 23. Nc6 {[%emt 0:00:19]} Ra8 {[%emt 0:00:03]} 24. Re3 {[%emt 0:00:17]} Rf8 {[%emt 0:01:17]} 25. Ne4 {[%emt 0:01:06]} Nxe4 {[%emt 0:01:24]} 26. Rxe4 {[%emt 0:00:03]} Nc5 {[%emt 0:00:17]} 27. Rg4 {[%emt 0:00:06]} a4 {[%emt 0:01:40]} 28. b4 {[%emt 0:00:10]} a3 {[%emt 0:00:33]} 29. Bd4 {[%emt 0:00:33]} Nd3 {[%emt 0:00:02]} 30. Rf1 {[%emt 0:02:00]} Rxf1 {[%emt 0:00:16]} 31. Kxf1 {[%emt 0:00:02]} Rf8+ {[%emt 0:00:05]} 32. Kg2 {[%emt 0:00:29]} Nc1 {[%emt 0:00:13]} 33. c5 {[%emt 0:00:12]} b5 {[%emt 0:01:21]} 34. Be3 Nxa2 35. Bd2 {[%emt 0:04:22]} Ra8 {[%emt 0:01:06]} 36. Rxg5 {[%emt 0:00:28]} Kf7 {[%emt 0:01:09]} 37. Rg4 {[%emt 0:00:24]} Ra6 {[%emt 0:00:32]} 38. Nb8 {[%emt 0:00:19]} Ra8 {[%emt 0:00:04]} 39. Nc6 {[%emt 0:00:33]} Ra6 {[%emt 0:00:04]} 40. Nb8 {[%emt 0:01:45]} Ra4 {[%emt 0:00:02]} 41. Nc6 {[%emt 0:01:04]} Ra6 {[%emt 0:00:24]} 42. Nb8 {[%emt 0:00:03]} Ra8 {[%emt 0:00:11]} 43. Nc6 {[%emt 0:00:03]} Kf8 {[%emt 0:01:37]} 44. Re4 {[%emt 0:00:51]} Ke8 {[%emt 0:00:09]} 45. g4 {[%emt 0:00:27]} Kf7 {[%emt 0:00:20]} 46. h4 {[%emt 0:00:06]} Ra6 {[%emt 0:00:24]} 47. Nd4 {[%emt 0:00:02]} Ra8 {[%emt 0:00:31]} 48. Nc6 {[%emt 0:00:12]} Ra6 {[%emt 0:00:05]} 49. Nd4 {[%emt 0:00:21]} Ra8 {[%emt 0:00:04]} 50. Nxb5 {[%emt 0:00:09]} Rd8 {[%emt 0:00:00]} 51. Rd4 {[%emt 0:00:01]} Rxd4 {[%emt 0:00:33]} 52. Nxd4 {[%emt 0:00:01]} Bxe5 {[%emt 0:00:01]} 53. Nc2 {[%emt 0:00:01]} Bb2 {[%emt 0:00:01]} 54. b5 {[%emt 0:00:20]} Nc1 {[%emt 0:00:03]} 55. b6 {[%emt 0:00:11]} cxb6 {[%emt 0:00:19]} 56. cxb6 {[%emt 0:00:04]} Nb3 {[%emt 0:00:01]} 57. Bb4 {[%emt 0:00:15]} a2 {[%emt 0:00:09]} 58. b7 {[%emt 0:00:16]} Be5 {[%emt 0:00:09]} 59. Bc3 {[%emt 0:00:03]} Bd6 {[%emt 0:00:27]} 60. h5 {[%emt 0:00:30]} e5 {[%emt 0:00:06]} 61. g5 {[%emt 0:00:08]} Bc7 {[%emt 0:00:01]} 62. Kf3 {[%emt 0:00:02]} Nc5 {[%emt 0:00:02]} 63. Kg4 {[%emt 0:00:09]} Nxb7 {[%emt 0:00:03]} 64. g6+ {[%emt 0:00:11]} Kf6 {[%emt 0:00:01]} 65. Nb4 {[%emt 0:00:08]} Ba5 {[%emt 0:00:23]} 66. Nxa2 {[%emt 0:00:01]} Bd8 {[%emt 0:00:11]} 67. Nb4 {[%emt 0:00:06]} Nc5 {[%emt 0:00:19]} 68. Nc6 {[%emt 0:00:10]} Bc7 {[%emt 0:00:19]} 69. Bxe5+ {[%emt 0:00:31]} Bxe5 70. Nxe5 {[%emt 0:00:01]} Ne4 {[%emt 0:00:36]} 71. Nd7+ {[%emt 0:00:17]} Ke7 {[%emt 0:00:07]} 72. g7 {[%emt 0:00:16]} Kf7 {[%emt 0:00:09]} 73. h6 {[%emt 0:00:09]} Kg8 {[%emt 0:00:16]} 74. Kf5 {[%emt 0:00:11]} Ng3+ {[%emt 0:00:19]} 75. Kg6 {[%emt 0:00:07]} 1-0

[Event "Czech Open Rapid G1 2024"]
[Site "Pardubice"]
[Date "2024.07.18"]
[Round "7.36"]
[White "Alexikov, Alexander"]
[Black "Soucek, Andrej"]
[Result "1-0"]
[Annotator "RC"]
[ECO "B67"]
[WhiteElo "2183"]
[BlackElo "1889"]
[PlyCount "121"]
[EventDate "2024.07.16"]
[EventType "swiss"]
[EventCountry "CZE"]
[SourceTitle "playchess.com"]
[Source "ChessBase"]
[SourceQuality "1"]
[TimeControl "1200+10"]

1. e4 {[%emt 0:00:01]} c5 {[%emt 0:00:02]} 2. Nf3 {[%emt 0:00:02]} d6 {[%emt 0:00:04]} 3. d4 {[%emt 0:00:03]} cxd4 4. Nxd4 {[%emt 0:00:00]} Nf6 {[%emt 0:00:06]} 5. Nc3 {[%emt 0:00:00]} Nc6 {[%emt 0:00:04]} 6. Bg5 {[%emt 0:00:47]} e6 {[%emt 0:00:01]} 7. Qd2 {[%emt 0:01:54]} a6 {[%emt 0:00:01]} 8. O-O-O {[%emt 0:00:03]} Bd7 {[%emt 0:00:14]} 9. f4 {[%emt 0:00:22]} b5 {[%emt 0:00:23]} 10. Qe1 {[%emt 0:04:39]} Rc8 {[%emt 0:03:59]} 11. Nxc6 {[%emt 0:04:02]} Rxc6 {[%emt 0:00:29]} 12. Nd5 {[%emt 0:00:33]} h6 {[%emt 0:02:09]} 13. Bh4 {[%emt 0:00:05]} Be7 {[%emt 0:06:10]} 14. Nxe7 {[%emt 0:00:59]} Qxe7 {[%emt 0:00:02]} 15. Kb1 {[%emt 0:00:02]} e5 {[%emt 0:02:13]} 16. f5 {[%emt 0:00:02]} Rc8 {[%emt 0:00:46]} 17. Qa5 {[%emt 0:03:09]} d5 {[%emt 0:00:51]} 18. Bd3 {[%emt 0:01:19]} Qd6 {[%emt 0:02:02]} 19. Rhe1 {[%emt 0:01:37]} O-O {[%emt 0:00:23]} 20. c3 {[%emt 0:01:33]} Bc6 {[%emt 0:00:53]} 21. Bc2 {[%emt 0:00:11]} Bb7 {[%emt 0:00:51]} 22. Bb3 {[%emt 0:00:15]} d4 {[%emt 0:01:24]} 23. Bg3 {[%emt 0:01:35]} Bxe4+ {[%emt 0:00:08]} 24. Ka1 {[%emt 0:00:14]} Qc6 {[%emt 0:00:16]} 25. Bxe5 {[%emt 0:00:10]} Bxf5 {[%emt 0:00:29]} 26. Bxd4 {[%emt 0:00:07]} Bg6 {[%emt 0:00:06]} 27. Rd2 {[%emt 0:00:28]} Rfe8 {[%emt 0:00:07]} 28. Rf1 {[%emt 0:00:06]} Ne4 {[%emt 0:00:09]} 29. Rdd1 {[%emt 0:00:05]} Nc5 {[%emt 0:00:03]} 30. Bxc5 {[%emt 0:00:06]} Qxc5 {[%emt 0:00:01]} 31. Qxa6 {[%emt 0:00:02]} Rc6 {[%emt 0:00:10]} 32. Qb7 {[%emt 0:00:06]} Re7 {[%emt 0:00:01]} 33. Qb8+ {[%emt 0:00:02]} Rc8 {[%emt 0:00:02]} 34. Qf4 {[%emt 0:00:01]} Ra8 {[%emt 0:00:22]} 35. Rd5 {[%emt 0:00:14]} Qa7 {[%emt 0:00:29]} 36. Qd2 {[%emt 0:00:30]} Rae8 {[%emt 0:00:18]} 37. Rd8 {[%emt 0:00:10]} Qc7 {[%emt 0:00:09]} 38. Rxe8+ {[%emt 0:00:07]} Rxe8 {[%emt 0:00:01]} 39. h3 {[%emt 0:00:09]} Qe5 {[%emt 0:00:09]} 40. a3 {[%emt 0:00:04]} Re7 {[%emt 0:00:26]} 41. Ka2 {[%emt 0:00:12]} Kh7 {[%emt 0:00:10]} 42. Rf4 {[%emt 0:00:25]} Qe1 {[%emt 0:00:14]} 43. Qxe1 {[%emt 0:00:08]} Rxe1 {[%emt 0:00:01]} 44. Bxf7 {[%emt 0:00:01]} Re2 {[%emt 0:00:15]} 45. Bxg6+ {[%emt 0:00:09]} Kxg6 {[%emt 0:00:01]} 46. Rg4+ {[%emt 0:00:11]} Kf6 {[%emt 0:00:00]} 47. h4 {[%emt 0:00:06]} g6 {[%emt 0:00:26]} 48. g3 {[%emt 0:00:15]} Kf5 {[%emt 0:00:00]} 49. Rf4+ {[%emt 0:00:05]} Ke5 {[%emt 0:00:03]} 50. Rb4 {[%emt 0:00:20]} Rg2 {[%emt 0:00:20]} 51. g4 {[%emt 0:00:04]} Rg3 {[%emt 0:00:20]} 52. Rxb5+ {[%emt 0:00:23]} Kf4 {[%emt 0:00:00]} 53. Rb4+ {[%emt 0:00:01]} Kf3 {[%emt 0:00:10]} 54. a4 {[%emt 0:00:01]} Rg1 {[%emt 0:00:17]} 55. a5 {[%emt 0:00:05]} Rd1 {[%emt 0:00:03]} 56. Rd4 {[%emt 0:00:08]} Re1 {[%emt 0:00:02]} 57. b4 {[%emt 0:00:03]} Kg3 {[%emt 0:00:13]} 58. g5 {[%emt 0:00:13]} hxg5 {[%emt 0:00:09]} 59. hxg5 {[%emt 0:00:02]} Re5 {[%emt 0:00:01]} 60. a6 {[%emt 0:00:01]} Re6 {[%emt 0:00:02]} 61. b5 {[%emt 0:00:02]} 1-0

[Event "Czech Open Rapid G1 2024"]
[Site "Pardubice"]
[Date "2024.07.18"]
[Round "8.1"]
[White "Movsesian, Sergei"]
[Black "Karvatskyi, Oleksii"]
[Result "1-0"]
[Annotator "TA"]
[ECO "B53"]
[WhiteElo "2618"]
[BlackElo "1990"]
[PlyCount "93"]
[EventDate "2024.07.16"]
[EventType "swiss"]
[EventCountry "CZE"]
[SourceTitle "playchess.com"]
[Source "ChessBase"]
[SourceQuality "1"]
[TimeControl "1200+10"]

{[%evp 16,93,36,20,22,11,8,0,21,29,44,38,190,185,432,432,416,277,358,381,316,320,334,285,438,442,418,372,360,375,374,312,340,357,342,354,395,390,411,400,471,409,437,386,375,334,413,412,419,431,449,451,431,415,631,637,759,754,903,898,853,837,856,862,870,856,1068,1137,1695,1164,1268,1189,1110,1095,6103,1941,1740,1555,29973,29974]} 1. e4 {[%emt 0:00:01]} c5 {[%emt 0:00:10]} 2. Nc3 {[%emt 0:00:10]} Nc6 {[%emt 0:00:10]} 3. Nf3 {[%emt 0:00:10]} d6 {[%emt 0:00:10]} 4. Bb5 {[%emt 0:00:10]} Bd7 {[%emt 0:00:10]} 5. Bxc6 {[%emt 0:00:10]} Bxc6 {[%emt 0:00:10]} 6. d4 {[%emt 0:00:10]} cxd4 {[%emt 0:00:10]} 7. Qxd4 {[%emt 0:00:00]} e5 {[%emt 0:00:00]} 8. Qd3 {[%emt 0:00:00]} h6 {[%emt 0:00:01]} 9. O-O {[%emt 0:00:00]} (9. Nd2 $5) 9... Nf6 {[%emt 0:00:02][%cal Ob7b5]} 10. Rd1 {[%emt 0:00:00]} Be7 {[%emt 0:00:07]} 11. Nd2 {[%emt 0:00:19][%cal Bf3d2,Bd2c4,Bc4d6,Bd6f5][%mdl 32]} d5 {[%emt 0:00:30] Prevents Nc4. The position is equal.} 12. Qg3 {[%emt 0:01:15][%csl LRe5,LRg7] [#] Strongly threatening exd5.} d4 {[%emt 0:02:48]} (12... Nxe4 $2 13. Ndxe4 (13. Qxe5 Nxd2 14. Bxd2 O-O $11) 13... Kf8 14. Qxe5 $18) 13. Nc4 {[%emt 0:00:10]} Qc7 {[%emt 0:00:10]} (13... Nxe4 $6 14. Nxe4 (14. Qxe5 Nxc3 15. bxc3 O-O $11) 14... Bxe4 15. Nxe5 $16 (15. Qxg7 Bf6 $11) (15. Qxe5 Qd5 $16)) (13... O-O $14) 14. Rxd4 $18 {[%emt 0:00:10]} (14. Qxg7 $2 Rg8 15. Qxh6 O-O-O $19 (15... dxc3 $2 16. b3 $19)) 14... exd4 $2 (14... O-O 15. Qxe5 (15. Nxe5 $2 Nh5 $19) 15... Rfc8 16. Qxc7 Rxc7) 15. Qxc7 {[%emt 0:00:16]} dxc3 {[%emt 0:02:49]} 16. Nd6+ {[%emt 0:02:22]} Kf8 {[%emt 0:01:26][%cal Be8f8,Bf8g8,Bg8h7][%mdl 32]} 17. Nf5 {[%emt 0:01:45]} (17. Nxb7 Bxe4 18. f3 (18. bxc3 Ne8 $14) 18... Ne8 $18) 17... Bd8 {[%emt 0:00:22]} 18. Qd6+ {[%emt 0:01:55]} Kg8 {[%emt 0:00:04]} 19. Qg3 {[%emt 0:00:02][%csl Gf5][%cal Rg3g7] [#]} ({Much less strong is} 19. bxc3 $6 Bxe4 20. Ne3 Kh7 $18) 19... g5 {[%emt 0:00:21]} (19... g6 $142) 20. Qxc3 {[%emt 0:01:14]} Bxe4 {[%emt 0:00:35]} 21. Ng3 {[%emt 0:00:03] Black must now prevent Nxe4.} Bg6 {[%emt 0:00:12]} 22. Bd2 {[%emt 0:00:33]} Kh7 {[%emt 0:01:15]} 23. Re1 {[%emt 0:00:06]} Re8 {[%emt 0:00:26]} 24. Rxe8 {[%emt 0:00:42]} Nxe8 {[%emt 0:00:02]} 25. Qb4 {[%emt 0:00:38]} Bb6 {[%emt 0:00:23]} 26. h4 {[%emt 0:00:21] Hoping for h5.} Rd8 {[%emt 0:00:40]} 27. hxg5 {[%emt 0:00:16]} hxg5 {[%emt 0:00:03]} 28. Nf1 {[%emt 0:00:24]} ({Don't take} 28. Bxg5 Rd5 29. Qh4+ Kg8) 28... Ng7 {[%emt 0:00:55]} 29. Qg4 {[%emt 0:02:24]} Ne6 {[%emt 0:00:52]} 30. Be3 {[%emt 0:00:03]} Bxc2 {[%emt 0:00:12]} 31. Bxb6 {[%emt 0:00:25]} ({Don't play} 31. Bxg5 Nxg5 32. Qxg5 Bg6) 31... axb6 {[%emt 0:00:02]} 32. Ne3 {[%emt 0:00:46]} Bg6 {[%emt 0:00:12]} 33. Qb4 {[%emt 0:00:05]} Kg7 {[%emt 0:00:32]} 34. Qxb6 {[%emt 0:00:12]} Bd3 {[%emt 0:00:10]} (34... Rd7 $142 35. Qb5 Rd8 36. Qxb7 Rd6) 35. Qxb7 {[%emt 0:00:49]} Nd4 {[%emt 0:00:19]} 36. f3 {[%emt 0:00:14]} Ne2+ {[%emt 0:01:05]} 37. Kf2 {[%emt 0:00:04]} Nf4 {[%emt 0:00:10]} 38. Qe7 {[%emt 0:00:20][%csl LRd8,LRg5]} Ne6 {[%emt 0:00:02]} 39. Ng4 {[%emt 0:00:10] And now Qf6+ would win.} Bg6 {[%emt 0:00:16]} 40. Qf6+ {[%emt 0:00:09]} Kh7 {[%emt 0:00:03]} 41. Ne5 {[%emt 0:00:36]} Rd2+ {[%emt 0:00:34]} 42. Ke3 {[%emt 0:00:53] Intending Nxg6 and mate.} Rd6 {[%emt 0:00:04]} 43. Nxf7 {[%emt 0:01:16]} Bxf7 {[%emt 0:00:19]} 44. Qxf7+ {[%emt 0:00:02]} Kh6 {[%emt 0:00:01]} 45. Qf6+ {[%emt 0:00:11]} Kh7 {[%emt 0:00:01]} 46. Kf2 {[%emt 0:00:31] Qe7+ would kill now.} Rd2+ {[%emt 0:00:11]} 47. Ke1 {[%emt 0:00:04] Black did not feel at home in the position after the opening.   Weighted Error Value: White=0.20 (precise) /Black=0.52.  Mistake:       	---       	Black=4      Inaccurate:     	White=1     	---        OK:         	White=12    	Black=6      Best:        	White=4     	Black=2} 1-0

[Event "Czech Open Rapid G1 2024"]
[Site "Pardubice"]
[Date "2024.07.18"]
[Round "8.2"]
[White "Kulon, Klaudia"]
[Black "Nisipeanu, Liviu-Dieter"]
[Result "0-1"]
[Annotator "TA"]
[ECO "E71"]
[WhiteElo "2380"]
[BlackElo "2583"]
[PlyCount "70"]
[EventDate "2024.07.16"]
[EventType "swiss"]
[EventCountry "CZE"]
[SourceTitle "playchess.com"]
[Source "ChessBase"]
[SourceQuality "1"]
[TimeControl "1200+10"]

{[%evp 23,69,52,64,42,56,49,40,45,170,172,164,145,160,141,208,202,191,135,215,144,134,87,44,-143,-142,-161,-162,-166,0,0,0,0,0,0,129,52,80,68,508,479,452,468,585,595,586,446,714,-29999]} 1. c4 {[%emt 0:00:02]} Nf6 {[%emt 0:00:03]} 2. Nc3 {[%emt 0:00:12]} g6 {[%emt 0:00:03]} 3. e4 {[%emt 0:00:08]} d6 {[%emt 0:00:01]} 4. d4 {[%emt 0:00:02]} Bg7 {[%emt 0:00:01]} 5. h3 {[%emt 0:00:11]} O-O {[%emt 0:00:04]} 6. Be3 {[%emt 0:00:03]} e5 {[%emt 0:00:05]} 7. d5 {[%emt 0:00:02]} a5 {[%emt 0:00:03]} 8. g4 {[%emt 0:00:10] E71: Königsindisch (5.h3).} Na6 {[%emt 0:00:01]} 9. Qd2 {[%emt 0:00:17]} Nc5 {[%emt 0:00:45]} 10. f3 {[%emt 0:00:48]} Bd7 {[%emt 0:00:10]} 11. Nge2 {[%emt 0:00:03]} c6 {[%emt 0:00:41]} 12. Ng3 {[%emt 0:00:00]} (12. dxc6 $16 bxc6 13. Qxd6 Nb7) 12... a4 {[%emt 0:00:11]} 13. h4 {[%emt 0:00:00]} cxd5 {[%emt 0:00:12]} 14. cxd5 {[%emt 0:00:00]} Qa5 $1 {[%emt 0:00:06]} 15. h5 {[%emt 0:00:00]} Rac8 $5 {[%emt 0:00:41][%mdl 4] Eine vielversprechende Nebenvariante.} (15... b5 $1 $14) 16. h6 $18 {[%emt 0:00:53]} Bh8 {[%emt 0:00:02]} 17. Nf5 $1 {[%emt 0:00:37]} Bxf5 {[%emt 0:00:18]} (17... gxf5 $2 18. Bxc5 (18. gxf5 Rfd8 $17) 18... f4 19. Bxd6 $18) 18. gxf5 {[%emt 0:00:05]} a3 {[%emt 0:00:03]} (18... Rfd8 $16 19. fxg6 fxg6) 19. b4 $18 {[%emt 0:00:13]} Qxb4 {[%emt 0:00:09]} 20. Rb1 $1 {[%emt 0:00:04]} Qa5 {[%emt 0:01:05]} (20... Nd3+ $16 {ist eine bessere Verteidigung.} 21. Bxd3 Qxc3 22. Qxc3 (22. Rxb7 Qxd2+ 23. Kxd2 Rb8 $18) 22... Rxc3) 21. Nb5 {[%emt 0:01:44]} Qd8 {[%emt 0:01:20]} 22. fxg6 {[%emt 0:00:44]} (22. Bh3 Nfxe4 23. fxg6 (23. fxe4 Qh4+ 24. Kd1 Qxe4 $11) 23... fxg6 (23... Nxd2 $2 24. gxh7+ Kxh7 25. Bf5+ Kg8 26. Rg1+ $18) 24. fxe4 Qh4+ 25. Ke2 Qh5+ 26. Ke1 Qf3 $11) (22. Bg5 $142) 22... fxg6 $16 {[%emt 0:00:03]} 23. Bh3 $146 {[%emt 0:00:08]} (23. Nxa3 Nh5 24. Bg2 Bf6 $11) (23. Rc1 $14 {behält die Oberhand.} Qb6 24. Nxa3) ({Predecessor:} 23. Bg5 Ra8 24. Bh3 Qe7 25. O-O Ra6 26. Rfc1 Re8 27. Qe3 b6 28. Bf1 Ra5 29. Nxa3 {1-0 Chapman,T (2204)-Luciani,C (2197) EU-ch Seniors 65 22nd 2023 (7)}) 23... Nfxe4 $1 $17 {[%emt 0:00:29]} 24. fxe4 {[%emt 0:03:44]} Qh4+ {[%emt 0:01:07]} 25. Ke2 {[%emt 0:00:24]} Qxe4 $2 {[%emt 0:00:23]} (25... Qh5+ $19 26. Ke1 Qf3) 26. Rbf1 $1 $11 {[%emt 0:02:40]} Qc4+ {[%emt 0:01:20]} 27. Kd1 {[%emt 0:01:33]} Qxb5 {[%emt 0:00:26]} 28. Bxc5 $1 {[%emt 0:00:33]} Rfe8 {[%emt 0:00:01]} (28... Qa4+ $11 {hält das Gleichgewicht.} 29. Ke1 Qe4+ (29... Rxc5 30. Be6+) (29... Rxf1+ $2 30. Rxf1 Qe4+ 31. Qe3 $18) 30. Qe2 (30. Be3 Rxf1+ 31. Rxf1 Qh4+ 32. Qf2 Qb4+ 33. Qd2 Qh4+ 34. Qf2 Qb4+ 35. Kd1 Qb1+ 36. Ke2 Qb5+ 37. Kd1 Qb1+ 38. Ke2 Qb5+ 39. Ke1 Qb1+ 40. Ke2 $11) 30... Qb1+ (30... Qxd5 31. Bxc8 Rxc8 32. Be3 $16) 31. Qd1 Qe4+ (31... Qxa2 32. Be6+) 32. Qe2 Qb1+ (32... Qxd5 $2 33. Bxc8 Rxc8 34. Bxa3 $16) (32... Qxe2+ 33. Kxe2 Rce8 34. Bxd6 $18) 33. Qd1 Qe4+ (33... Qxa2 34. Be6+) 34. Qe2) 29. Bxc8 {[%emt 0:02:07]} (29. Bxa3 $2 e4 (29... Qa4+ $2 30. Ke1 $19) 30. Bxc8 (30. Bxd6 $2 e3 $19) 30... e3 31. Be6+ Rxe6 32. dxe6 (32. Qe2 $2 Qb1+ 33. Bc1 Re4 $19) 32... exd2 $19) (29. Bxd6 $16 e4 30. Be6+ (30. Bxa3 $2 e3 $19) (30. Bxc8 Rxc8 31. Bb4 Re8 $11) 30... Rxe6 31. dxe6) 29... Rxc8 $14 {[%emt 0:00:02]} 30. Bxd6 {[%emt 0:01:13]} (30. Bxa3 $2 Qa4+ 31. Ke1 Qxa3 $19) 30... Qb1+ $2 {[%emt 0:02:56][%mdl 8192]} (30... Qa4+ $14 31. Ke1 Qe4+ 32. Kf2 Rc2) 31. Ke2 $18 {[%emt 0:00:02]} Qe4+ {[%emt 0:00:02]} 32. Qe3 $1 {[%emt 0:02:18]} (32. Kf2 Rc2 33. Kg3 Bg7 $18) 32... Qc2+ {[%emt 0:01:26] [#]} (32... Rc2+ $2 33. Kd1) 33. Ke1 $1 {[%emt 0:00:20]} (33. Kf3 Rc3 $11 (33... Qxa2 $2 34. Kg3 $18) (33... Qxa2 $2 34. Kg3 $18)) 33... e4 {[%emt 0:00:02] [#]} 34. Rh3 $1 {[%emt 0:00:45]} (34. Bxa3 Bc3+ (34... Qxa2 $2 35. Rh3 $18) (34... Qxa2 $2 35. Rh3 $18)) 34... Qxa2 {[%emt 0:04:12]} ({Aber nicht} 34... Bc3+ $2 35. Qxc3 Qb1+ 36. Ke2 (36. Kf2 Rxc3 37. Rxc3 Qxf1+ 38. Kxf1 Kf7 39. Bxa3 b5 40. d6 Ke6) 36... Qxa2+ 37. Qd2 Qc4+ 38. Kf2) (34... Qb1+ $142 35. Kf2 Qxa2+ 36. Kg3 (36. Kg1 Qxd5 37. Qf4 Bd4+ 38. Kh2 Qf5 $18) 36... Qxd5) 35. Qxe4 $4 {[%emt 0:00:39][%mdl 8192]} (35. Qf4 $18 Qa1+ 36. Kf2) 35... Rc1# {[%emt 0:00:08]} 0-1